fUST/lending_fUST_20250822
["ID","MTS","AMOUNT","RATE_DAILY","PERIOD"]
[380549394,1755807044431,-480.0,0.0002,2]
[380549395,1755807044440,-600.64,0.0002,2]
[380549396,1755807044450,-480.0,0.0002,2]
[380549397,1755807044460,-265.8,0.0002,2]
[380549398,1755807044612,-480.0,0.0002,2]
[380549399,1755807044622,-1194.3,0.0002,2]
[380549400,1755807044632,-480.0,0.0002,2]
[380549401,1755807044642,-480.0,0.0002,2]
[380549402,1755807044651,-953.56,0.0002,2]
[380549403,1755807044661,-206.48,0.0002,2]
[380549404,1755807044670,-2888.87,0.0002,2]
[380549405,1755807044679,-480.0,0.0002,2]
[380549406,1755807044688,-480.0,0.0002,2]
[380549407,1755807044697,-480.0,0.0002,2]
[380549408,1755807044706,-496.69,0.0002,2]
[380549409,1755807044715,-1121.23,0.0002,2]
[380549410,1755807044726,-484.79,0.0002,2]
[380549411,1755807044735,-480.0,0.0002,2]
[380549412,1755807044744,-648.6,0.0002,2]
[380549413,1755807044753,-528.71,0.0002,2]
[380549414,1755807044765,-191.21,0.0002,2]
[380549415,1755807044774,-5434.25,0.0002,2]
[380549416,1755807044783,-480.0,0.0002,2]
[380549417,1755807044792,-480.0,0.0002,2]
[380549418,1755807044803,-503.55,0.0002,2]
[380549419,1755807044812,-480.0,0.0002,2]
[380549420,1755807044822,-2049.4,0.0002,2]
[380549421,1755807044831,-785.98,0.0002,2]
[380549422,1755807044840,-480.0,0.0002,2]
[380549423,1755807044850,-518.17,0.0002,2]
[380549424,1755807044860,-2290.87,0.0002,2]
[380549425,1755807044869,-1692.72,0.0002,2]
[380549426,1755807044879,-480.0,0.0002,2]
[380549427,1755807044888,-154.26,0.0002,2]
[380549428,1755807044897,-480.0,0.0002,2]
[380549429,1755807044907,-5659.8,0.0002,2]
[380549430,1755807044918,-1141.27,0.0002,2]
[380549431,1755807044927,-480.0,0.0002,2]
[380549432,1755807044937,-1890.58,0.0002,2]
[380549433,1755807044946,-1023.17,0.0002,2]
[380549434,1755807044954,-480.0,0.0002,2]
[380549435,1755807044964,-480.0,0.0002,2]
[380549436,1755807044973,-480.0,0.0002,2]
[380549437,1755807044983,-480.0,0.0002,2]
[380549438,1755807044992,-480.0,0.0002,2]
[380549439,1755807045001,-284.04,0.0002,2]
[380549440,1755807045011,-480.0,0.0002,2]
[380549441,1755807045020,-480.0,0.0002,2]
[380549442,1755807045030,-480.0,0.0002,2]
[380549443,1755807045039,-1471.06,0.0002,2]
[380549444,1755807045049,-480.0,0.0002,2]
[380549445,1755807045058,-480.0,0.0002,2]
[380549446,1755807045068,-480.0,0.0002,2]
[380549447,1755807045077,-480.0,0.0002,2]
[380549448,1755807045085,-555.49,0.0002,2]
[380549449,1755807045095,-1189.57,0.0002,2]
[380549450,1755807045104,-498.58,0.0002,2]
[380549451,1755807045113,-519.77,0.0002,2]
[380549452,1755807045123,-480.0,0.0002,2]
[380549453,1755807045132,-480.0,0.0002,2]
[380549454,1755807045142,-480.0,0.0002,2]
[380549455,1755807045151,-480.0,0.0002,2]
[380549456,1755807045160,-4189.69,0.0002,2]
[380549457,1755807045170,-480.0,0.0002,2]
[380549458,1755807045180,-1642.55,0.0002,2]
[380549459,1755807045189,-609.2,0.0002,2]
[380549460,1755807045199,-480.0,0.0002,2]
[380549461,1755807045208,-480.0,0.0002,2]
[380549462,1755807045218,-480.0,0.0002,2]
[380549463,1755807045228,-607.77,0.0002,2]
[380549464,1755807045237,-480.0,0.0002,2]
[380549465,1755807045247,-500.0,0.0002,2]
[380549466,1755807045257,-455.01543026,0.00020021,2]
[380549467,1755807045266,-500.0,0.00020021,2]
[380549468,1755807045275,-2347.87260389,0.00020039,2]
[380549469,1755807045285,-344.0,0.0002005,2]
[380549471,1755807045295,-2434.74389024,0.00020094,2]
[380549473,1755807045304,-528.88070896,0.00020111,2]
[380549475,1755807045314,-215.86710461,0.00020111,2]
[380549477,1755807045323,-844.19128999,0.00020111,2]
[380549479,1755807045332,-12690.45384448,0.00020135,2]
[380549481,1755807045341,-160.0,0.00020136,2]
[380549482,1755807045351,-160.0,0.00020136,2]
[380549483,1755807045361,-160.0,0.00020136,2]
[380549484,1755807045369,-232.28399145,0.00020136,2]
[380549485,1755807045379,-160.0,0.00020136,2]
[380549486,1755807045388,-160.0,0.00020136,2]
[380549487,1755807045397,-376.00439007,0.00020136,2]
[380549489,1755807045406,-216.95272161,0.00020136,2]
[380549491,1755807045416,-160.0,0.00020136,2]
[380549493,1755807045425,-2524.82941417,0.00020149,2]
[380549495,1755807045434,-152.58231,0.00020157,2]
[380549497,1755807045444,-152.58231,0.0002016,2]
[380549499,1755807045453,-152.58231,0.00020169,10]
[380549501,1755807045463,-2818.33680489,0.00020196,2]
[380549503,1755807045473,-2618.2481025,0.00020204,2]
[380549505,1755807045482,-2715.12328229,0.00020259,2]
[380549507,1755807045491,-480.0,0.00020273,2]
[380549509,1755807045501,-283.5,0.00020273,2]
[380549511,1755807045510,-299.83,0.00020273,2]
[380549513,1755807045520,-480.0,0.00020273,2]
[380549516,1755807045529,-480.0,0.00020273,2]
[380549517,1755807045538,-542.5,0.00020273,2]
[380549520,1755807045547,-182.79070144,0.00020273,2]
[380549522,1755807045558,-522.37,0.00020273,2]
[380549523,1755807045567,-480.0,0.00020273,2]
[380549526,1755807045577,-480.0,0.00020273,2]
[380549527,1755807045586,-211.46,0.00020273,2]
[380549529,1755807045595,-290.25,0.00020273,2]
[380549532,1755807045605,-384.63,0.00020273,2]
[380549534,1755807045614,-480.0,0.00020273,2]
[380549535,1755807045624,-331.37,0.00020273,2]
[380549537,1755807045633,-480.0,0.00020273,2]
[380549540,1755807045643,-558.5,0.00020273,2]
[380549541,1755807045653,-684.61,0.00020273,2]
[380549544,1755807045662,-480.0,0.00020273,2]
[380549546,1755807045672,-480.0,0.00020273,2]
[380549548,1755807045682,-601.98,0.00020273,2]
[380549550,1755807045692,-480.0,0.00020273,2]
[380549552,1755807045701,-480.0,0.00020273,2]
[380549554,1755807045711,-450.53,0.00020273,2]
[380549556,1755807045720,-480.0,0.00020273,2]
[380549558,1755807045729,-1194.3,0.00020273,2]
[380549560,1755807045739,-480.0,0.00020273,2]
[380549562,1755807045749,-480.0,0.00020273,2]
[380549564,1755807045759,-953.56,0.00020273,2]
[380549565,1755807045771,-2888.87,0.00020273,2]
[380549568,1755807045781,-480.0,0.00020273,2]
[380549570,1755807045792,-480.0,0.00020273,2]
[380549571,1755807045802,-480.0,0.00020273,2]
[380549572,1755807045813,-1121.23,0.00020273,2]
[380549573,1755807045822,-484.79,0.00020273,2]
[380549574,1755807045832,-480.0,0.00020273,2]
[380549575,1755807045844,-641.41,0.00020273,2]
[380549576,1755807045855,-648.6,0.00020273,2]
[380549577,1755807045864,-528.71,0.00020273,2]
[380549578,1755807045874,-5434.25,0.00020273,2]
[380549579,1755807045883,-551.65,0.00020273,2]
[380549580,1755807045892,-567.21,0.00020273,2]
[380549581,1755807045902,-480.0,0.00020273,2]
[380549582,1755807045911,-503.55,0.00020273,2]
[380549583,1755807045921,-480.0,0.00020273,2]
[380549584,1755807045931,-2049.4,0.00020273,2]
[380549585,1755807045940,-785.98,0.00020273,2]
[380549587,1755807045950,-385.52,0.00020273,2]
[380549588,1755807045959,-518.17,0.00020273,2]
[380549589,1755807045969,-2290.87,0.00020273,2]
[380549590,1755807045978,-1692.72,0.00020273,2]
[380549591,1755807045988,-1356.2,0.00020273,2]
[380549592,1755807045997,-480.0,0.00020273,2]
[380549593,1755807046007,-5659.8,0.00020273,2]
[380549594,1755807046016,-590.38,0.00020273,2]
[380549595,1755807046028,-1141.27,0.00020273,2]
[380549596,1755807046038,-358.5,0.00020273,2]
[380549597,1755807046047,-1890.58,0.00020273,2]
[380549598,1755807046057,-1023.17,0.00020273,2]
[380549599,1755807046066,-480.0,0.00020273,2]
[380549600,1755807046075,-480.0,0.00020273,2]
[380549601,1755807046085,-480.0,0.00020273,2]
[380549602,1755807046094,-480.0,0.00020273,2]
[380549603,1755807046103,-480.0,0.00020273,2]
[380549604,1755807046113,-480.0,0.00020273,2]
[380549605,1755807046122,-480.0,0.00020273,2]
[380549606,1755807046132,-480.0,0.00020273,2]
[380549608,1755807046141,-480.0,0.00020273,2]
[380549609,1755807046152,-1471.06,0.00020273,2]
[380549611,1755807046162,-480.0,0.00020273,2]
[380549613,1755807046172,-480.0,0.00020273,2]
[380549615,1755807046182,-480.0,0.00020273,2]
[380549617,1755807046191,-480.0,0.00020273,2]
[380549619,1755807046201,-555.49,0.00020273,2]
[380549621,1755807046211,-1189.57,0.00020273,2]
[380549623,1755807046220,-498.58,0.00020273,2]
[380549625,1755807046230,-519.77,0.00020273,2]
[380549627,1755807046239,-1756.76,0.00020273,2]
[380549629,1755807046248,-480.0,0.00020273,2]
[380549631,1755807046258,-551.37,0.00020273,2]
[380549633,1755807046268,-480.0,0.00020273,2]
[380549635,1755807046277,-480.0,0.00020273,2]
[380549637,1755807046287,-4189.69,0.00020273,2]
[380549639,1755807046296,-480.0,0.00020273,2]
[380549641,1755807046307,-1642.55,0.00020273,2]
[380549643,1755807046316,-1344.476836,0.00020273,2]
[380549645,1755807046326,-609.2,0.00020273,2]
[380549647,1755807046336,-480.0,0.00020273,2]
[380549649,1755807046345,-480.0,0.00020273,2]
[380549651,1755807046355,-1344.476836,0.00020273,2]
[380549653,1755807046365,-480.0,0.00020273,2]
[380549655,1755807046375,-1344.476836,0.00020273,2]
[380549657,1755807046384,-480.0,0.00020273,2]
[380549659,1755807046394,-1344.476836,0.00020273,2]
[380549661,1755807046403,-607.77,0.00020273,2]
[380549663,1755807046413,-480.0,0.00020273,2]
[380549664,1755807046423,-506.49646671,0.00020274,2]
[380549666,1755807046432,-1000.0,0.000203,2]
[380549668,1755807046442,-2036.70485734,0.0002031,2]
[380549670,1755807046451,-2815.58284374,0.00020314,2]
[380549672,1755807046461,-2919.75940895,0.00020369,2]
[380549674,1755807046470,-3027.79050709,0.00020424,2]
[380549676,1755807046480,-460.339,0.0002045,2]
[380549678,1755807046489,-3139.81875585,0.00020479,2]
[380549680,1755807046499,-1000.0,0.0002048,2]
[380549682,1755807046509,-1000.0,0.0002048,2]
[380549684,1755807046519,-173.70079383,0.0002048,2]
[380549686,1755807046529,-3255.99204981,0.00020534,2]
[380549688,1755807046539,-800.0,0.00020537,2]
[380549690,1755807046548,-3403.33711588,0.00020547,2]
[380549692,1755807046557,-480.0,0.00020547,2]
[380549694,1755807046567,-480.0,0.00020547,2]
[380549696,1755807046577,-480.0,0.00020547,2]
[380549698,1755807046586,-542.5,0.00020547,2]
[380549700,1755807046595,-522.37,0.00020547,2]
[380549702,1755807046604,-480.0,0.00020547,2]
[380549704,1755807046613,-319.80176049,0.00020547,2]
[380549706,1755807046623,-480.0,0.00020547,2]
[380549708,1755807046632,-480.0,0.00020547,2]
[380549710,1755807046641,-558.5,0.00020547,2]
[380549712,1755807046651,-684.61,0.00020547,2]
[380549714,1755807046660,-593.07,0.00020547,2]
[380549716,1755807046669,-480.0,0.00020547,2]
[380549718,1755807046678,-601.98,0.00020547,2]
[380549720,1755807046688,-480.0,0.00020547,2]
[380549722,1755807046697,-480.0,0.00020547,2]
[380549724,1755807046706,-151.0,0.00020547,2]
[380549726,1755807046715,-151.0,0.00020547,2]
[380549728,1755807046724,-151.0,0.00020547,2]
[380549730,1755807046733,-151.0,0.00020547,2]
[380549732,1755807046743,-151.0,0.00020547,2]
[380549734,1755807046752,-151.0,0.00020547,2]
[380549736,1755807046763,-196.117837,0.00020547,2]
[380549738,1755807046774,-480.0,0.00020547,2]
[380549740,1755807046783,-1194.3,0.00020547,2]
[380549742,1755807046793,-339.92,0.00020547,2]
[380549744,1755807046802,-151.0,0.00020547,2]
[380549746,1755807046813,-161.94808,0.00020547,2]
[380549747,1755807046822,-151.0,0.00020547,2]
[380549750,1755807046833,-161.94808,0.00020547,2]
[380549752,1755807046844,-161.94808,0.00020547,2]
[380549754,1755807046854,-480.0,0.00020547,2]
[380549755,1755807046863,-161.94808,0.00020547,2]
[380549757,1755807046872,-953.56,0.00020547,2]
[380549759,1755807046882,-151.0,0.00020547,2]
[380549761,1755807046892,-151.0,0.00020547,2]
[380549763,1755807046901,-2888.87,0.00020547,2]
[380549765,1755807046910,-151.0,0.00020547,2]
[380549767,1755807046920,-480.0,0.00020547,2]
[380549769,1755807046929,-480.0,0.00020547,2]
[380549771,1755807046938,-480.0,0.00020547,2]
[380549773,1755807046947,-151.0,0.00020547,2]
[380549775,1755807046957,-1121.23,0.00020547,2]
[380549777,1755807046966,-151.0,0.00020547,2]
[380549779,1755807046975,-484.79,0.00020547,2]
[380549781,1755807046985,-480.0,0.00020547,2]
[380549783,1755807046994,-151.0,0.00020547,2]
[380549785,1755807047003,-151.0,0.00020547,2]
[380549787,1755807047013,-151.0,0.00020547,2]
[380549789,1755807047022,-641.41,0.00020547,2]
[380549790,1755807047031,-151.0,0.00020547,2]
[380549792,1755807047040,-151.0,0.00020547,2]
[380549794,1755807047050,-648.6,0.00020547,2]
[380549796,1755807047059,-151.0,0.00020547,2]
[380549798,1755807047068,-151.0,0.00020547,2]
[380549800,1755807047077,-528.71,0.00020547,2]
[380549802,1755807047087,-5434.25,0.00020547,2]
[380549804,1755807047096,-551.65,0.00020547,2]
[380549806,1755807047105,-480.0,0.00020547,2]
[380549808,1755807047114,-480.0,0.00020547,2]
[380549810,1755807047124,-503.55,0.00020547,2]
[380549812,1755807047133,-2049.4,0.00020547,2]
[380549814,1755807047143,-785.98,0.00020547,2]
[380549816,1755807047152,-518.17,0.00020547,2]
[380549818,1755807047162,-151.0,0.00020547,2]
[380549820,1755807047171,-1246.566901,0.00020547,2]
[380549822,1755807047180,-404.779857,0.00020547,2]
[380549824,1755807047189,-2290.87,0.00020547,2]
[380549826,1755807047198,-1246.566901,0.00020547,2]
[380549828,1755807047207,-404.779857,0.00020547,2]
[380549830,1755807047217,-1246.566901,0.00020547,2]
[380549832,1755807047226,-151.0,0.00020547,2]
[380549834,1755807047235,-404.779857,0.00020547,2]
[380549836,1755807047245,-1246.566901,0.00020547,2]
[380549838,1755807047255,-404.779857,0.00020547,2]
[380549840,1755807047265,-151.512819,0.00020547,2]
[380549842,1755807047274,-1692.72,0.00020547,2]
[380549844,1755807047283,-1356.2,0.00020547,2]
[380549846,1755807047292,-480.0,0.00020547,2]
[380549848,1755807047302,-151.0,0.00020547,2]
[380549850,1755807047312,-5659.8,0.00020547,2]
[380549852,1755807047322,-151.0,0.00020547,2]
[380549854,1755807047331,-151.0,0.00020547,2]
[380549856,1755807047340,-151.0,0.00020547,2]
[380549858,1755807047349,-1141.27,0.00020547,2]
[380549860,1755807047358,-151.0,0.00020547,2]
[380549862,1755807047367,-423.329657,0.00020547,2]
[380549863,1755807047377,-423.329657,0.00020547,2]
[380549865,1755807047386,-197.399964,0.00020547,2]
[380549867,1755807047395,-423.329657,0.00020547,2]
[380549869,1755807047405,-197.399964,0.00020547,2]
[380549871,1755807047415,-1890.58,0.00020547,2]
[380549873,1755807047424,-423.329657,0.00020547,2]
[380549875,1755807047433,-197.399964,0.00020547,2]
[380549877,1755807047442,-151.0,0.00020547,2]
[380549879,1755807047451,-197.399964,0.00020547,2]
[380549881,1755807047460,-151.0,0.00020547,2]
[380549883,1755807047470,-1023.17,0.00020547,2]
[380549885,1755807047479,-151.0,0.00020547,2]
[380549887,1755807047490,-480.0,0.00020547,2]
[380549889,1755807047499,-480.0,0.00020547,2]
[380549891,1755807047508,-256.15,0.00020547,2]
[380549893,1755807047519,-480.0,0.00020547,2]
[380549908,1755807047648,-480.0,0.00020547,2]
[380549910,1755807047658,-181.133621,0.00020547,2]
[380549912,1755807047667,-151.0,0.00020547,2]
[380549914,1755807047676,-181.133621,0.00020547,2]
[380549916,1755807047686,-194.82,0.00020547,2]
[380549918,1755807047696,-181.133621,0.00020547,2]
[380549920,1755807047705,-480.0,0.00020547,2]
[380549922,1755807047714,-181.133621,0.00020547,2]
[380549924,1755807047724,-480.0,0.00020547,2]
[380549926,1755807047733,-192.541867,0.00020547,2]
[380549928,1755807047743,-192.541867,0.00020547,2]
[380549930,1755807047752,-480.0,0.00020547,2]
[380549932,1755807047764,-192.541867,0.00020547,2]
[380549934,1755807047774,-151.0,0.00020547,2]
[380549936,1755807047784,-192.541867,0.00020547,2]
[380549938,1755807047793,-151.0,0.00020547,2]
[380549940,1755807047802,-151.0,0.00020547,2]
[380549941,1755807047813,-1471.06,0.00020547,2]
[380549944,1755807047822,-212.003252,0.00020547,2]
[380549946,1755807047832,-480.0,0.00020547,2]
[380549948,1755807047842,-480.0,0.00020547,2]
[380549950,1755807047853,-212.003252,0.00020547,2]
[380549952,1755807047863,-212.003252,0.00020547,2]
[380549954,1755807047874,-212.003252,0.00020547,2]
[380549956,1755807047884,-556.41,0.00020547,2]
[380549957,1755807047893,-309.54,0.00020547,2]
[380549959,1755807047903,-151.0,0.00020547,2]
[380549962,1755807047912,-555.49,0.00020547,2]
[380549963,1755807047922,-1189.57,0.00020547,2]
[380549965,1755807047931,-498.58,0.00020547,2]
[380549967,1755807047941,-1756.76,0.00020547,2]
[380549970,1755807047950,-519.77,0.00020547,2]
[380549971,1755807047960,-480.0,0.00020547,2]
[380549973,1755807047969,-480.0,0.00020547,2]
[380549975,1755807047978,-480.0,0.00020547,2]
[380549977,1755807047988,-4189.69,0.00020547,2]
[380549980,1755807047998,-480.0,0.00020547,2]
[380549981,1755807048007,-1642.55,0.00020547,2]
[380549983,1755807048016,-609.2,0.00020547,2]
[380549985,1755807048025,-480.0,0.00020547,2]
[380549987,1755807048035,-480.0,0.00020547,2]
[380549989,1755807048045,-480.0,0.00020547,2]
[380549991,1755807048054,-317.32321019,0.00020547,2]
[380549994,1755807048065,-607.77,0.00020547,2]
[380549995,1755807048074,-480.0,0.00020547,2]
[380549998,1755807048084,-151.0,0.00020548,2]
[380549999,1755807048094,-151.0,0.00020548,2]
[380550001,1755807048104,-190.89222303,0.00020548,2]
[380550003,1755807048113,-151.0,0.00020548,2]
[380550006,1755807048123,-151.0,0.00020548,2]
[380550008,1755807048133,-151.0,0.00020548,2]
[380550010,1755807048143,-823.0,0.00020548,2]
[380550012,1755807048152,-151.0,0.00020548,2]
[380550014,1755807048161,-191.66307787,0.00020548,2]
[380550016,1755807048171,-151.0,0.00020548,2]
[380550018,1755807048180,-180.43841876,0.00020548,2]
[380550020,1755807048190,-151.0,0.00020548,2]
[380550022,1755807048199,-151.0,0.00020548,2]
[380550024,1755807048210,-151.0,0.00020548,2]
[380550026,1755807048219,-151.0,0.00020548,2]
[380550028,1755807048229,-500.0,0.00020548,2]
[380550030,1755807048238,-500.0,0.00020548,2]
[380550032,1755807048248,-151.0,0.00020548,2]
[380550034,1755807048258,-151.0,0.00020548,2]
[380550036,1755807048268,-264.62832098,0.00020548,2]
[380550038,1755807048277,-151.0,0.00020548,2]
[380550040,1755807048289,-151.0,0.00020548,2]
[380550042,1755807048298,-151.0,0.00020548,2]
[380550043,1755807048308,-151.0,0.00020548,2]
[380550045,1755807048319,-151.0,0.00020548,2]
[380550047,1755807048329,-500.0,0.00020548,2]
[380550049,1755807048338,-500.0,0.00020548,2]
[380550051,1755807048348,-151.0,0.00020548,2]
[380550053,1755807048359,-151.0,0.00020548,2]
[380550055,1755807048368,-151.0,0.00020548,2]
[380550057,1755807048378,-151.27353968,0.00020548,2]
[380550059,1755807048388,-206.36564155,0.00020548,2]
[380550061,1755807048398,-3376.46375566,0.00020589,2]
[380550063,1755807048408,-800.0,0.00020619,2]
[380550065,1755807048418,-168.0,0.00020642,2]
[380550067,1755807048427,-3501.39291462,0.00020644,2]
[380550069,1755807048437,-2036.70485734,0.00020653,2]
[380550071,1755807048447,-500.0,0.00020673,2]
[380550073,1755807048456,-500.0,0.00020673,2]
[380550075,1755807048465,-500.0,0.00020673,2]
[380550077,1755807048475,-183.24857298,0.00020673,2]
[380550079,1755807048484,-500.0,0.00020673,2]
[380550081,1755807048493,-500.0,0.00020673,2]
[380550083,1755807048502,-500.0,0.00020673,2]
[380550085,1755807048511,-500.0,0.00020673,2]
[380550087,1755807048520,-517.2707129,0.00020673,2]
[380550089,1755807048530,-500.0,0.00020673,2]
[380550091,1755807048539,-500.0,0.00020673,2]
[380550093,1755807048548,-260.50182072,0.00020673,2]
[380550095,1755807048557,-500.0,0.00020673,2]
[380550097,1755807048567,-500.0,0.00020673,2]
[380550099,1755807048576,-500.0,0.00020673,2]
[380550101,1755807048585,-500.0,0.00020673,2]
[380550103,1755807048594,-500.0,0.00020673,2]
[380550105,1755807048604,-500.0,0.00020673,2]
[380550107,1755807048613,-502.6290904,0.00020673,2]
[380550108,1755807048623,-500.0,0.00020673,2]
[380550111,1755807048632,-500.0,0.00020673,2]
[380550112,1755807048642,-500.0,0.00020673,2]
[380550114,1755807048651,-500.0,0.00020673,2]
[380550117,1755807048661,-500.0,0.00020673,2]
[380550118,1755807048670,-500.0,0.00020673,2]
[380550120,1755807048680,-501.35145141,0.00020673,2]
[380550123,1755807048689,-500.0,0.00020673,2]
[380550125,1755807048699,-500.0,0.00020673,2]
[380550127,1755807048708,-500.0,0.00020673,2]
[380550128,1755807048718,-500.0,0.00020673,2]
[380550130,1755807048727,-200.0,0.0002068,3]
[380550132,1755807048736,-188.9947005,0.00020693,2]
[380550134,1755807048745,-325.0,0.00020694,2]
[380550136,1755807048754,-3630.94445246,0.00020699,2]
[380550138,1755807048769,-162245.00877258,0.000207,2]
[380550140,1755807048779,-302859.22,0.000207,2]
[380550142,1755807048788,-151.0,0.000207,2]
[380550144,1755807048797,-151.0,0.000207,2]
[380550146,1755807048807,-151.0,0.000207,2]
[380550148,1755807048818,-156.248367,0.000207,2]
[380550150,1755807048827,-151.0,0.000207,2]
[380550152,1755807048837,-167.343957,0.000207,2]
[380550154,1755807048847,-151.0,0.000207,2]
[380550156,1755807048858,-151.0,0.000207,2]
[380550158,1755807048867,-151.0,0.000207,2]
[380550160,1755807048877,-151.0,0.000207,2]
[380550162,1755807048886,-151.0,0.000207,2]
[380550164,1755807048896,-151.0,0.000207,2]
[380550166,1755807048906,-151.0,0.000207,2]
[380550168,1755807048915,-151.0,0.000207,2]
[380550170,1755807048924,-151.0,0.000207,2]
[380550172,1755807048933,-151.0,0.000207,2]
[380550174,1755807048943,-151.0,0.000207,2]
[380550176,1755807048952,-151.0,0.000207,2]
[380550178,1755807048962,-151.0,0.000207,2]
[380550180,1755807048971,-151.0,0.000207,2]
[380550182,1755807048980,-151.0,0.000207,2]
[380550184,1755807048989,-151.0,0.000207,2]
[380550186,1755807048998,-151.0,0.000207,2]
[380550188,1755807049008,-151.0,0.000207,2]
[380550190,1755807049018,-151.0,0.000207,2]
[380550192,1755807049027,-151.0,0.000207,2]
[380550194,1755807049037,-151.0,0.000207,2]
[380550196,1755807049047,-151.0,0.000207,2]
[380550198,1755807049056,-151.0,0.000207,2]
[380550200,1755807049067,-151.0,0.000207,2]
[380550202,1755807049076,-151.0,0.000207,2]
[380550204,1755807049086,-151.0,0.000207,2]
[380550206,1755807049095,-151.0,0.000207,2]
[380550208,1755807049105,-151.0,0.000207,2]
[380550210,1755807049115,-194.994437,0.000207,2]
[380550212,1755807049124,-166.5253,0.000207,2]
[380550214,1755807049134,-166.5253,0.000207,2]
[380550216,1755807049145,-166.5253,0.000207,2]
[380550218,1755807049155,-166.5253,0.000207,2]
[380550220,1755807049164,-166.5253,0.000207,2]
[380550222,1755807049174,-166.5253,0.000207,2]
[380550224,1755807049185,-166.5253,0.000207,2]
[380550226,1755807049194,-166.5253,0.000207,2]
[380550228,1755807049204,-151.0,0.000207,2]
[380550230,1755807049213,-151.0,0.000207,2]
[380550232,1755807049223,-151.0,0.000207,2]
[380550234,1755807049232,-258.097144,0.000207,2]
[380550236,1755807049241,-151.0,0.000207,2]
[380550238,1755807049250,-151.0,0.000207,2]
[380550240,1755807049259,-151.0,0.000207,2]
[380550242,1755807049268,-151.854492,0.000207,2]
[380550244,1755807049277,-301.658454,0.000207,2]
[380550246,1755807049287,-151.0,0.000207,2]
[380550248,1755807049296,-151.0,0.000207,2]
[380550250,1755807049306,-151.0,0.000207,2]
[380550252,1755807049316,-179.595668,0.000207,2]
[380550254,1755807049327,-151.0,0.000207,2]
[380550256,1755807049335,-151.0,0.000207,2]
[380550258,1755807049344,-165.933761,0.000207,2]
[380550260,1755807049354,-151.0,0.000207,2]
[380550262,1755807049363,-151.0,0.000207,2]
[380550264,1755807049373,-151.0,0.000207,2]
[380550266,1755807049383,-151.0,0.000207,2]
[380550268,1755807049392,-1000.0,0.000207,2]
[380550270,1755807049401,-1000.0,0.000207,2]
[380550272,1755807049410,-1000.0,0.000207,2]
[380550274,1755807049420,-1000.0,0.000207,2]
[380550276,1755807049430,-1000.0,0.000207,2]
[380550278,1755807049439,-1000.0,0.000207,2]
[380550280,1755807049448,-1000.0,0.000207,2]
[380550282,1755807049458,-1000.0,0.000207,2]
[380550284,1755807049467,-1000.0,0.000207,2]